[Event "Titled Tuesday Blitz October 18 Late 2022"]
[White "Rosen, Eric"]
[Black "Lizak, Peter"]
[WhiteFideId "2032562"]
[BlackFideId "731595"]
[WhiteElo "2362"]
[BlackElo "2420"]
[Result "1-0"]
[Round "10"]
[TimeControl "180+1"]
[Date "2022.10.18"]
[WhiteClock "0:00:28"]
[BlackClock "0:00:04"]

1. d4 {[%clk 0:03:00]}  Nf6 {[%clk 0:03:00]} 2. Bf4 {[%clk 0:02:59]}  c5 {[%clk 0:03:00]} 3. e3 {[%clk 0:02:59]}  d5 {[%clk 0:03:01]} 4. Nf3 {[%clk 0:03:00]}  Nc6 {[%clk 0:03:01]} 5. Nbd2 {[%clk 0:03:00]}  g6 {[%clk 0:02:50]} 6. dxc5 {[%clk 0:02:58]}  Bg7 {[%clk 0:02:50]} 7. c3 {[%clk 0:02:55]}  O-O {[%clk 0:02:50]} 8. Be2 {[%clk 0:02:55]}  Nd7 {[%clk 0:02:50]} 9. b4 {[%clk 0:02:49]}  e5 {[%clk 0:02:49]} 10. Bg3 {[%clk 0:02:49]}  a5 {[%clk 0:02:46]} 11. a3 {[%clk 0:02:39]}  f5 {[%clk 0:02:20]} 12. O-O {[%clk 0:02:26]}  h6 {[%clk 0:02:16]} 13. h3 {[%clk 0:02:06]}  Kh7 {[%clk 0:02:08]} 14. Qb3 {[%clk 0:02:05]}  e4 {[%clk 0:02:06]} 15. Nd4 {[%clk 0:02:04]}  Nf6 {[%clk 0:02:01]} 16. Bd6 {[%clk 0:02:03]}  Re8 {[%clk 0:01:58]} 17. b5 {[%clk 0:02:00]}  Ne5 {[%clk 0:01:57]} 18. c4 {[%clk 0:02:00]}  a4 {[%clk 0:01:48]} 19. Qa2 {[%clk 0:01:56]}  Nf7 {[%clk 0:01:03]} 20. Bh2 {[%clk 0:01:49]}  Ng5 {[%clk 0:01:01]} 21. cxd5 {[%clk 0:01:38]}  Nxd5 {[%clk 0:01:01]} 22. Rac1 {[%clk 0:01:25]}  f4 {[%clk 0:00:58]} 23. Nc4 {[%clk 0:00:53]}  f3 {[%clk 0:00:52]} 24. gxf3 {[%clk 0:00:47]}  Nxh3+ {[%clk 0:00:33]} 25. Kh1 {[%clk 0:00:47]}  Qh4 {[%clk 0:00:31]} 26. Bg3 {[%clk 0:00:32]}  Nxf2+ {[%clk 0:00:19]} 27. Kg2 {[%clk 0:00:32]}  Qh3+ {[%clk 0:00:19]} 28. Kxf2 {[%clk 0:00:32]}  Bxd4 {[%clk 0:00:18]} 29. Rh1 {[%clk 0:00:29]}  Qf5 {[%clk 0:00:11]} 30. exd4 {[%clk 0:00:28]}  exf3 {[%clk 0:00:06]} 31. Bxf3 {[%clk 0:00:27]}  Rf8 {[%clk 0:00:05]} 32. Ne5 {[%clk 0:00:28]}  Be6 {[%clk 0:00:04]} 33. Qd2 {[%clk 0:00:27]}  Rae8 {[%clk 0:00:03]} 34. Qxh6+ {[%clk 0:00:27]}  Kg8 {[%clk 0:00:04]} 35. Qh8# {[%clk 0:00:28]} 1-0


[Site "https://www.chess.com"]

[Event "Titled Tuesday Blitz October 18 Late 2022"]
[White "Sabar, Ethmane Daouda"]
[Black "Petrova, Irina"]
[WhiteFideId "19600097"]
[BlackFideId "14124122"]
[WhiteElo "1950"]
[BlackElo "2023"]
[Result "0-1"]
[Round "10"]
[TimeControl "180+1"]
[Date "2022.10.19"]
[WhiteClock "0:00:18"]
[BlackClock "0:00:57"]

1. b3 {[%clk 0:03:00]}  d6 {[%clk 0:03:00]} 2. Bb2 {[%clk 0:03:01]}  e5 {[%clk 0:02:59]} 3. e3 {[%clk 0:03:01]}  Nc6 {[%clk 0:02:49]} 4. Bb5 {[%clk 0:03:00]}  Qg5 {[%clk 0:02:42]} 5. Qf3 {[%clk 0:02:48]}  Bd7 {[%clk 0:02:34]} 6. h4 {[%clk 0:02:40]}  Qg6 {[%clk 0:02:31]} 7. d3 {[%clk 0:02:39]}  h5 {[%clk 0:02:18]} 8. Nd2 {[%clk 0:02:31]}  Nge7 {[%clk 0:02:15]} 9. Ne2 {[%clk 0:02:19]}  a6 {[%clk 0:02:12]} 10. Bxc6 {[%clk 0:02:08]}  Nxc6 {[%clk 0:02:12]} 11. Qg3 {[%clk 0:02:04]}  Qg4 {[%clk 0:02:04]} 12. f3 {[%clk 0:01:52]}  Qxg3+ {[%clk 0:02:02]} 13. Nxg3 {[%clk 0:01:53]}  O-O-O {[%clk 0:01:49]} 14. O-O-O {[%clk 0:01:44]}  d5 {[%clk 0:01:42]} 15. Rde1 {[%clk 0:01:22]}  Bc5 {[%clk 0:01:35]} 16. Rhf1 {[%clk 0:01:17]}  f6 {[%clk 0:01:32]} 17. f4 {[%clk 0:01:12]}  exf4 {[%clk 0:01:30]} 18. exf4 {[%clk 0:01:09]}  Ne7 {[%clk 0:01:24]} 19. Nf3 {[%clk 0:00:52]}  Ng6 {[%clk 0:01:21]} 20. f5 {[%clk 0:00:48]}  Nf4 {[%clk 0:01:17]} 21. d4 {[%clk 0:00:41]}  Bd6 {[%clk 0:01:14]} 22. Rf2 {[%clk 0:00:38]}  Nd3+ {[%clk 0:01:10]} 23. cxd3 {[%clk 0:00:29]}  Bxg3 {[%clk 0:01:10]} 24. Rfe2 {[%clk 0:00:29]}  Bxe1 {[%clk 0:01:10]} 25. Rxe1 {[%clk 0:00:30]}  Bxf5 {[%clk 0:01:08]} 26. Kd2 {[%clk 0:00:28]}  Rhe8 {[%clk 0:01:07]} 27. Rf1 {[%clk 0:00:29]}  g6 {[%clk 0:01:06]} 28. Ba3 {[%clk 0:00:24]}  Re6 {[%clk 0:01:06]} 29. Ng1 {[%clk 0:00:22]}  Rde8 {[%clk 0:01:06]} 30. Rc1 {[%clk 0:00:19]}  Re3 {[%clk 0:00:58]} 31. Rc3 {[%clk 0:00:18]}  Rg3 {[%clk 0:00:57]} 0-1


[Site "https://www.chess.com"]

[Event "Titled Tuesday Blitz October 18 Late 2022"]
[White "Sailer, Mike"]
[Black "Daeschler, Florian"]
[WhiteFideId "2012901"]
[BlackFideId "20678193"]
[WhiteElo "2109"]
[BlackElo "2187"]
[Result "0-1"]
[Round "10"]
[TimeControl "180+1"]
[Date "2022.10.19"]
[WhiteClock "0:00:02"]
[BlackClock "0:00:16"]

1. d4 {[%clk 0:02:57]}  Nf6 {[%clk 0:02:56]} 2. Bf4 {[%clk 0:02:42]}  d5 {[%clk 0:02:43]} 3. Nc3 {[%clk 0:02:41]}  c5 {[%clk 0:02:39]} 4. e4 {[%clk 0:02:37]}  cxd4 {[%clk 0:02:33]} 5. Qxd4 {[%clk 0:02:34]}  Nc6 {[%clk 0:02:33]} 6. Bb5 {[%clk 0:02:33]}  e6 {[%clk 0:02:33]} 7. O-O-O {[%clk 0:02:26]}  Bd7 {[%clk 0:02:24]} 8. Bxc6 {[%clk 0:02:26]}  bxc6 {[%clk 0:02:25]} 9. exd5 {[%clk 0:02:23]}  cxd5 {[%clk 0:02:22]} 10. Nf3 {[%clk 0:02:18]}  Rc8 {[%clk 0:02:17]} 11. Ne5 {[%clk 0:01:57]}  Bc5 {[%clk 0:02:06]} 12. Qd2 {[%clk 0:01:57]}  O-O {[%clk 0:02:03]} 13. Bg5 {[%clk 0:01:45]}  Be7 {[%clk 0:01:52]} 14. h4 {[%clk 0:01:44]}  Be8 {[%clk 0:01:23]} 15. f4 {[%clk 0:01:22]}  Bb4 {[%clk 0:01:13]} 16. Rh3 {[%clk 0:01:20]}  Ne4 {[%clk 0:01:05]} 17. Bxd8 {[%clk 0:01:15]}  Nxd2 {[%clk 0:01:05]} 18. Rxd2 {[%clk 0:00:54]}  Rxd8 {[%clk 0:01:04]} 19. Rdd3 {[%clk 0:00:45]}  f6 {[%clk 0:00:48]} 20. Nf3 {[%clk 0:00:45]}  Bg6 {[%clk 0:00:48]} 21. Rd1 {[%clk 0:00:37]}  Bd6 {[%clk 0:00:42]} 22. Ne2 {[%clk 0:00:31]}  Rc8 {[%clk 0:00:40]} 23. c3 {[%clk 0:00:24]}  Bh5 {[%clk 0:00:37]} 24. Rd4 {[%clk 0:00:06]}  Rc7 {[%clk 0:00:35]} 25. Ra4 {[%clk 0:00:04]}  Rfc8 {[%clk 0:00:33]} 26. Rh1 {[%clk 0:00:03]}  Bg4 {[%clk 0:00:32]} 27. Rf1 {[%clk 0:00:03]}  h5 {[%clk 0:00:31]} 28. g3 {[%clk 0:00:03]}  Kf7 {[%clk 0:00:28]} 29. Ned4 {[%clk 0:00:04]}  Kg6 {[%clk 0:00:23]} 30. Nb5 {[%clk 0:00:04]}  Rd7 {[%clk 0:00:22]} 31. Nxd6 {[%clk 0:00:05]}  Rxd6 {[%clk 0:00:23]} 32. Rxa7 {[%clk 0:00:06]}  d4 {[%clk 0:00:22]} 33. Nxd4 {[%clk 0:00:06]}  Rxd4 {[%clk 0:00:22]} 34. Kb1 {[%clk 0:00:06]}  Rd2 {[%clk 0:00:22]} 35. a3 {[%clk 0:00:06]}  Rb8 {[%clk 0:00:22]} 36. b4 {[%clk 0:00:06]}  Rc8 {[%clk 0:00:21]} 37. Rc1 {[%clk 0:00:05]}  Rg2 {[%clk 0:00:20]} 38. c4 {[%clk 0:00:06]}  Rd8 {[%clk 0:00:20]} 39. Rc2 {[%clk 0:00:01]}  Rxg3 {[%clk 0:00:19]} 40. Kb2 {[%clk 0:00:01]}  Bd1 {[%clk 0:00:18]} 41. Rf2 {[%clk 0:00:01]}  Rb3+ {[%clk 0:00:17]} 42. Ka2 {[%clk 0:00:02]}  Rc3 {[%clk 0:00:17]} 43. c5 {[%clk 0:00:02]}  Bf3 {[%clk 0:00:17]} 44. Rb2 {[%clk 0:00:02]}  Rdd3 {[%clk 0:00:17]} 45. a4 {[%clk 0:00:01]}  Bd5+ {[%clk 0:00:17]} 46. Kb1 {[%clk 0:00:02]}  Rd1# {[%clk 0:00:16]} 0-1


[Site "https://www.chess.com"]

[Event "Titled Tuesday Blitz October 18 Late 2022"]
[White "Shuvalov, Evgenij"]
[Black "Martin Carmona, Gaston Manuel"]
[WhiteFideId "4187237"]
[BlackFideId "22284567"]
[WhiteElo "2049"]
[BlackElo "2235"]
[Result "1-0"]
[Round "10"]
[TimeControl "180+1"]
[Date "2022.10.19"]
[WhiteClock "0:01:30"]
[BlackClock "0:00:07"]

1. d4 {[%clk 0:03:00]}  Nf6 {[%clk 0:02:59]} 2. c4 {[%clk 0:03:00]}  g6 {[%clk 0:02:59]} 3. Nc3 {[%clk 0:03:00]}  Bg7 {[%clk 0:02:59]} 4. e4 {[%clk 0:03:00]}  d6 {[%clk 0:02:59]} 5. Nf3 {[%clk 0:03:00]}  O-O {[%clk 0:03:00]} 6. Be2 {[%clk 0:03:01]}  e5 {[%clk 0:02:59]} 7. O-O {[%clk 0:03:01]}  exd4 {[%clk 0:02:59]} 8. Nxd4 {[%clk 0:03:02]}  Re8 {[%clk 0:02:59]} 9. f3 {[%clk 0:03:02]}  c6 {[%clk 0:03:00]} 10. Kh1 {[%clk 0:03:01]}  Qb6 {[%clk 0:02:57]} 11. Nb3 {[%clk 0:02:55]}  Qc7 {[%clk 0:02:56]} 12. Bf4 {[%clk 0:02:54]}  Bf8 {[%clk 0:02:45]} 13. c5 {[%clk 0:02:53]}  Rd8 {[%clk 0:02:44]} 14. Rc1 {[%clk 0:02:49]}  Be6 {[%clk 0:02:28]} 15. cxd6 {[%clk 0:02:44]}  Bxd6 {[%clk 0:02:27]} 16. Nb5 {[%clk 0:02:40]}  Bxf4 {[%clk 0:02:25]} 17. Nxc7 {[%clk 0:02:38]}  Rxd1 {[%clk 0:02:25]} 18. Nxa8 {[%clk 0:02:23]}  Rd8 {[%clk 0:01:34]} 19. Rcd1 {[%clk 0:02:22]}  Re8 {[%clk 0:01:34]} 20. g3 {[%clk 0:02:18]}  Be5 {[%clk 0:01:27]} 21. f4 {[%clk 0:02:16]}  Bxb2 {[%clk 0:01:27]} 22. Nc7 {[%clk 0:02:15]}  Rf8 {[%clk 0:01:28]} 23. Nxe6 {[%clk 0:02:12]}  fxe6 {[%clk 0:01:29]} 24. e5 {[%clk 0:02:10]}  Nd5 {[%clk 0:01:29]} 25. Rb1 {[%clk 0:02:04]}  Ba3 {[%clk 0:01:29]} 26. Nd4 {[%clk 0:02:03]}  b5 {[%clk 0:01:11]} 27. Nxe6 {[%clk 0:02:01]}  Re8 {[%clk 0:01:12]} 28. Nd4 {[%clk 0:01:58]}  Bc5 {[%clk 0:00:40]} 29. Nxc6 {[%clk 0:01:38]}  Nxc6 {[%clk 0:00:37]} 30. Rfc1 {[%clk 0:01:38]}  Bb6 {[%clk 0:00:06]} 31. Rxc6 {[%clk 0:01:37]}  Kg7 {[%clk 0:00:07]} 32. Bxb5 {[%clk 0:01:32]}  Rd8 {[%clk 0:00:07]} 33. Rd6 {[%clk 0:01:30]} 1-0


[Site "https://www.chess.com"]

[Event "Titled Tuesday Blitz October 18 Late 2022"]
[White "Souleidis, Georgios"]
[Black "Vlassov, Nikolai"]
[WhiteFideId "4206827"]
[BlackFideId "4103360"]
[WhiteElo "2401"]
[BlackElo "2324"]
[Result "0-1"]
[Round "10"]
[TimeControl "180+1"]
[Date "2022.10.19"]
[WhiteClock "0:00:01"]
[BlackClock "0:00:12"]

1. e4 {[%clk 0:03:00]}  c5 {[%clk 0:02:59]} 2. Be2 {[%clk 0:03:00]}  g6 {[%clk 0:02:58]} 3. d3 {[%clk 0:03:00]}  Bg7 {[%clk 0:02:58]} 4. f4 {[%clk 0:03:01]}  Nf6 {[%clk 0:02:57]} 5. Nf3 {[%clk 0:03:02]}  d5 {[%clk 0:02:57]} 6. e5 {[%clk 0:03:01]}  Ng4 {[%clk 0:02:52]} 7. c3 {[%clk 0:03:01]}  Nc6 {[%clk 0:02:52]} 8. O-O {[%clk 0:03:01]}  O-O {[%clk 0:02:51]} 9. Na3 {[%clk 0:03:02]}  d4 {[%clk 0:02:46]} 10. Nc2 {[%clk 0:02:42]}  f6 {[%clk 0:02:45]} 11. cxd4 {[%clk 0:02:35]}  cxd4 {[%clk 0:02:43]} 12. h3 {[%clk 0:02:25]}  Nh6 {[%clk 0:02:43]} 13. exf6 {[%clk 0:02:24]}  Bxf6 {[%clk 0:02:35]} 14. Nd2 {[%clk 0:02:12]}  Nf5 {[%clk 0:02:18]} 15. Ne4 {[%clk 0:02:11]}  Qb6 {[%clk 0:02:08]} 16. Kh2 {[%clk 0:01:59]}  Be6 {[%clk 0:02:07]} 17. Bf3 {[%clk 0:01:52]}  Rad8 {[%clk 0:02:06]} 18. Qe2 {[%clk 0:01:40]}  Bf7 {[%clk 0:01:52]} 19. b3 {[%clk 0:01:33]}  Nh4 {[%clk 0:01:44]} 20. Ba3 {[%clk 0:01:25]}  Nxf3+ {[%clk 0:01:40]} 21. Qxf3 {[%clk 0:01:25]}  Bg7 {[%clk 0:01:39]} 22. Qe2 {[%clk 0:01:12]}  Bd5 {[%clk 0:01:36]} 23. Ng5 {[%clk 0:01:07]}  Qc7 {[%clk 0:01:24]} 24. Ne6 {[%clk 0:01:00]}  Bxe6 {[%clk 0:01:20]} 25. Qxe6+ {[%clk 0:01:01]}  Kh8 {[%clk 0:01:21]} 26. g3 {[%clk 0:00:45]}  Rf6 {[%clk 0:01:20]} 27. Qe4 {[%clk 0:00:44]}  Rdf8 {[%clk 0:01:20]} 28. Rac1 {[%clk 0:00:36]}  Qd7 {[%clk 0:01:18]} 29. Nb4 {[%clk 0:00:34]}  Nxb4 {[%clk 0:01:05]} 30. Bxb4 {[%clk 0:00:35]}  Re6 {[%clk 0:01:04]} 31. Qg2 {[%clk 0:00:30]}  Re3 {[%clk 0:01:01]} 32. Rfe1 {[%clk 0:00:24]}  Rxd3 {[%clk 0:00:46]} 33. Rxe7 {[%clk 0:00:21]}  Qb5 {[%clk 0:00:45]} 34. Rxb7 {[%clk 0:00:19]}  Qf5 {[%clk 0:00:35]} 35. Rcc7 {[%clk 0:00:19]}  Rg8 {[%clk 0:00:34]} 36. Rf7 {[%clk 0:00:14]}  Qc8 {[%clk 0:00:25]} 37. Rbc7 {[%clk 0:00:12]}  Qd8 {[%clk 0:00:23]} 38. Rfd7 {[%clk 0:00:12]}  Qb8 {[%clk 0:00:22]} 39. Bd6 {[%clk 0:00:12]}  Re3 {[%clk 0:00:20]} 40. Be5 {[%clk 0:00:11]}  Qf8 {[%clk 0:00:15]} 41. Rxg7 {[%clk 0:00:10]}  Rxg7 {[%clk 0:00:16]} 42. Rxg7 {[%clk 0:00:10]}  Rxe5 {[%clk 0:00:16]} 43. fxe5 {[%clk 0:00:08]}  Kxg7 {[%clk 0:00:16]} 44. Qb7+ {[%clk 0:00:08]}  Kh6 {[%clk 0:00:16]} 45. Qd5 {[%clk 0:00:07]}  Qf2+ {[%clk 0:00:16]} 46. Kh1 {[%clk 0:00:08]}  Qe1+ {[%clk 0:00:16]} 47. Kg2 {[%clk 0:00:08]}  Qe2+ {[%clk 0:00:16]} 48. Kg1 {[%clk 0:00:07]}  d3 {[%clk 0:00:16]} 49. Qd6 {[%clk 0:00:03]}  d2 {[%clk 0:00:15]} 50. Qf8+ {[%clk 0:00:03]}  Kh5 {[%clk 0:00:15]} 51. g4+ {[%clk 0:00:02]}  Kh4 {[%clk 0:00:16]} 52. Qf6+ {[%clk 0:00:01]}  Kg3 {[%clk 0:00:12]} 0-1


[Site "https://www.chess.com"]

[Event "Titled Tuesday Blitz October 18 Late 2022"]
[White "Tarnowska, Aleksandra"]
[Black "Yano, William Jorge Froes"]
[WhiteFideId "1180967"]
[BlackFideId "2112949"]
[WhiteElo "1776"]
[BlackElo "2122"]
[Result "0-1"]
[Round "10"]
[TimeControl "180+1"]
[Date "2022.10.19"]
[WhiteClock "0:00:02"]
[BlackClock "0:00:16"]

1. e4 {[%clk 0:03:00]}  e6 {[%clk 0:03:00]} 2. d4 {[%clk 0:03:00]}  d5 {[%clk 0:03:00]} 3. Nd2 {[%clk 0:03:00]}  h6 {[%clk 0:03:00]} 4. c3 {[%clk 0:02:55]}  Nf6 {[%clk 0:03:00]} 5. e5 {[%clk 0:02:54]}  Nfd7 {[%clk 0:03:00]} 6. Bd3 {[%clk 0:02:50]}  c5 {[%clk 0:03:00]} 7. Ne2 {[%clk 0:02:50]}  Nc6 {[%clk 0:03:01]} 8. Nf3 {[%clk 0:02:50]}  a6 {[%clk 0:02:57]} 9. O-O {[%clk 0:02:48]}  g5 {[%clk 0:02:57]} 10. Ng3 {[%clk 0:01:57]}  g4 {[%clk 0:02:53]} 11. Ne1 {[%clk 0:01:46]}  cxd4 {[%clk 0:02:53]} 12. cxd4 {[%clk 0:01:46]}  Nxd4 {[%clk 0:02:54]} 13. Qxg4 {[%clk 0:01:32]}  Nc6 {[%clk 0:02:38]} 14. f4 {[%clk 0:00:57]}  Nc5 {[%clk 0:02:38]} 15. Nh5 {[%clk 0:00:45]}  Qb6 {[%clk 0:02:26]} 16. Nf6+ {[%clk 0:00:44]}  Kd8 {[%clk 0:02:20]} 17. Kh1 {[%clk 0:00:40]}  Nxd3 {[%clk 0:02:00]} 18. Nxd3 {[%clk 0:00:40]}  Bd7 {[%clk 0:01:28]} 19. Qh5 {[%clk 0:00:28]}  Be8 {[%clk 0:01:09]} 20. f5 {[%clk 0:00:19]}  Qb5 {[%clk 0:00:59]} 21. Qh3 {[%clk 0:00:13]}  Nxe5 {[%clk 0:00:57]} 22. Nxe8 {[%clk 0:00:11]}  Kxe8 {[%clk 0:00:53]} 23. Rd1 {[%clk 0:00:06]}  Nxd3 {[%clk 0:00:51]} 24. Rxd3 {[%clk 0:00:05]}  e5 {[%clk 0:00:49]} 25. Bd2 {[%clk 0:00:02]}  Be7 {[%clk 0:00:44]} 26. Re1 {[%clk 0:00:03]}  Bf6 {[%clk 0:00:41]} 27. Rf3 {[%clk 0:00:02]}  Rc8 {[%clk 0:00:40]} 28. Qg3 {[%clk 0:00:02]}  d4 {[%clk 0:00:28]} 29. h3 {[%clk 0:00:02]}  Ke7 {[%clk 0:00:27]} 30. Bf4 {[%clk 0:00:03]}  Rc5 {[%clk 0:00:27]} 31. Bd2 {[%clk 0:00:02]}  Rhc8 {[%clk 0:00:24]} 32. Qf2 {[%clk 0:00:02]}  Rc2 {[%clk 0:00:24]} 33. Qxd4 {[%clk 0:00:02]}  Kf8 {[%clk 0:00:20]} 34. Bb4+ {[%clk 0:00:03]}  Kg7 {[%clk 0:00:18]} 35. Qg4+ {[%clk 0:00:03]}  Kh7 {[%clk 0:00:18]} 36. Qh5 {[%clk 0:00:03]}  R8c7 {[%clk 0:00:16]} 37. Qg5 {[%clk 0:00:03]}  Bxg5 {[%clk 0:00:16]} 38. Rc3 {[%clk 0:00:02]}  R2xc3 {[%clk 0:00:16]} 0-1


[Site "https://www.chess.com"]

[Event "Titled Tuesday Blitz October 18 Late 2022"]
[White "Ter-Sahakyan, Samvel"]
[Black "Andreikin, Dmitry"]
[WhiteFideId "13302531"]
[BlackFideId "4158814"]
[WhiteElo "2604"]
[BlackElo "2736"]
[Result "1-0"]
[Round "10"]
[TimeControl "180+1"]
[Date "2022.10.18"]
[WhiteClock "0:00:04"]
[BlackClock "0:00:01"]

1. d4 {[%clk 0:02:58]}  d5 {[%clk 0:03:00]} 2. c4 {[%clk 0:02:57]}  e6 {[%clk 0:03:01]} 3. Nf3 {[%clk 0:02:57]}  Nf6 {[%clk 0:03:01]} 4. g3 {[%clk 0:02:57]}  dxc4 {[%clk 0:02:56]} 5. Bg2 {[%clk 0:02:56]}  c6 {[%clk 0:02:56]} 6. O-O {[%clk 0:02:55]}  b5 {[%clk 0:02:56]} 7. a4 {[%clk 0:02:48]}  Bb7 {[%clk 0:02:56]} 8. Ne5 {[%clk 0:02:46]}  a6 {[%clk 0:02:55]} 9. b3 {[%clk 0:02:46]}  cxb3 {[%clk 0:02:53]} 10. Qxb3 {[%clk 0:02:47]}  Qxd4 {[%clk 0:02:46]} 11. Bb2 {[%clk 0:02:46]}  Qb4 {[%clk 0:02:46]} 12. Qc2 {[%clk 0:02:46]}  Qc5 {[%clk 0:02:16]} 13. Qd3 {[%clk 0:02:41]}  Bd6 {[%clk 0:02:07]} 14. Rc1 {[%clk 0:02:27]}  Qxc1+ {[%clk 0:02:04]} 15. Bxc1 {[%clk 0:02:27]}  Bxe5 {[%clk 0:02:05]} 16. Ba3 {[%clk 0:02:09]}  Nbd7 {[%clk 0:01:24]} 17. Ra2 {[%clk 0:01:49]}  Nb6 {[%clk 0:01:20]} 18. Qc2 {[%clk 0:00:50]}  Nc4 {[%clk 0:01:13]} 19. Bc5 {[%clk 0:00:42]}  Nd7 {[%clk 0:00:57]} 20. Bb4 {[%clk 0:00:33]}  Rb8 {[%clk 0:00:45]} 21. axb5 {[%clk 0:00:29]}  axb5 {[%clk 0:00:46]} 22. Ra7 {[%clk 0:00:27]}  Bd6 {[%clk 0:00:34]} 23. Bxd6 {[%clk 0:00:22]}  Nxd6 {[%clk 0:00:35]} 24. Bxc6 {[%clk 0:00:21]}  Rc8 {[%clk 0:00:30]} 25. Bxd7+ {[%clk 0:00:17]}  Kxd7 {[%clk 0:00:31]} 26. Qb2 {[%clk 0:00:15]}  Rc5 {[%clk 0:00:23]} 27. f3 {[%clk 0:00:13]}  Rhc8 {[%clk 0:00:19]} 28. Nd2 {[%clk 0:00:11]}  Rc2 {[%clk 0:00:16]} 29. Qd4 {[%clk 0:00:08]}  Ke7 {[%clk 0:00:16]} 30. Ne4 {[%clk 0:00:07]}  Nxe4 {[%clk 0:00:03]} 31. Rxb7+ {[%clk 0:00:07]}  R2c7 {[%clk 0:00:04]} 32. Rxc7+ {[%clk 0:00:06]}  Rxc7 {[%clk 0:00:05]} 33. Qxe4 {[%clk 0:00:07]}  g6 {[%clk 0:00:04]} 34. Qb4+ {[%clk 0:00:07]}  Kf6 {[%clk 0:00:03]} 35. Qxb5 {[%clk 0:00:07]}  h5 {[%clk 0:00:03]} 36. Kf2 {[%clk 0:00:07]}  Re7 {[%clk 0:00:03]} 37. Qb2+ {[%clk 0:00:07]}  e5 {[%clk 0:00:03]} 38. Qb6+ {[%clk 0:00:06]}  Re6 {[%clk 0:00:03]} 39. Qd8+ {[%clk 0:00:06]}  Kg7 {[%clk 0:00:04]} 40. h4 {[%clk 0:00:07]}  e4 {[%clk 0:00:04]} 41. f4 {[%clk 0:00:05]}  f5 {[%clk 0:00:03]} 42. Ke3 {[%clk 0:00:06]}  Kf7 {[%clk 0:00:03]} 43. Kd4 {[%clk 0:00:06]}  Re7 {[%clk 0:00:03]} 44. Kd5 {[%clk 0:00:05]}  Re6 {[%clk 0:00:02]} 45. Qd7+ {[%clk 0:00:05]}  Re7 {[%clk 0:00:02]} 46. Qc8 {[%clk 0:00:06]}  Re8 {[%clk 0:00:03]} 47. Qb7+ {[%clk 0:00:05]}  Re7 {[%clk 0:00:03]} 48. Qb3 {[%clk 0:00:05]}  Kg7 {[%clk 0:00:02]} 49. Kd6 {[%clk 0:00:05]}  Rf7 {[%clk 0:00:02]} 50. Qc3+ {[%clk 0:00:06]}  Kh7 {[%clk 0:00:02]} 51. Ke6 {[%clk 0:00:06]}  Ra7 {[%clk 0:00:03]} 52. Qc4 {[%clk 0:00:05]}  Rb7 {[%clk 0:00:02]} 53. Kf6 {[%clk 0:00:05]}  Kh6 {[%clk 0:00:02]} 54. Qc5 {[%clk 0:00:04]}  Rb8 {[%clk 0:00:02]} 55. Qc7 {[%clk 0:00:04]}  Rf8+ {[%clk 0:00:01]} 56. Ke7 {[%clk 0:00:04]}  Rg8 {[%clk 0:00:01]} 57. Qe5 {[%clk 0:00:04]}  Kh7 {[%clk 0:00:01]} 58. Kf7 {[%clk 0:00:04]} 1-0


[Site "https://www.chess.com"]

[Event "Titled Tuesday Blitz October 18 Late 2022"]
[White "Thiel, Thomas"]
[Black "Gasparyan, David"]
[WhiteFideId "4615964"]
[BlackFideId "13311980"]
[WhiteElo "2270"]
[BlackElo "2375"]
[Result "1-0"]
[Round "10"]
[TimeControl "180+1"]
[Date "2022.10.19"]
[WhiteClock "0:01:16"]
[BlackClock "0:00:01"]

1. e4 {[%clk 0:03:00]}  d6 {[%clk 0:02:59]} 2. d4 {[%clk 0:02:59]}  g6 {[%clk 0:02:59]} 3. Nc3 {[%clk 0:02:58]}  Bg7 {[%clk 0:02:59]} 4. Bc4 {[%clk 0:02:58]}  Nf6 {[%clk 0:02:59]} 5. Qe2 {[%clk 0:02:58]}  c6 {[%clk 0:02:58]} 6. e5 {[%clk 0:02:58]}  dxe5 {[%clk 0:02:56]} 7. dxe5 {[%clk 0:02:59]}  Nd5 {[%clk 0:02:57]} 8. Bd2 {[%clk 0:02:58]}  Bf5 {[%clk 0:02:52]} 9. O-O-O {[%clk 0:02:57]}  h5 {[%clk 0:02:42]} 10. Nf3 {[%clk 0:02:48]}  Nb4 {[%clk 0:02:30]} 11. Bf4 {[%clk 0:02:36]}  Qa5 {[%clk 0:02:28]} 12. Nd4 {[%clk 0:02:35]}  Bc8 {[%clk 0:01:19]} 13. a3 {[%clk 0:02:33]}  N4a6 {[%clk 0:01:11]} 14. Nb3 {[%clk 0:02:13]}  Nb4 {[%clk 0:01:11]} 15. Nxa5 {[%clk 0:02:10]}  N4a6 {[%clk 0:00:51]} 16. Nb3 {[%clk 0:02:07]}  O-O {[%clk 0:00:43]} 17. e6 {[%clk 0:02:05]}  f5 {[%clk 0:00:42]} 18. Be5 {[%clk 0:02:01]}  Bh6+ {[%clk 0:00:41]} 19. Kb1 {[%clk 0:02:00]}  b5 {[%clk 0:00:42]} 20. Bxb5 {[%clk 0:01:52]}  cxb5 {[%clk 0:00:41]} 21. Qf3 {[%clk 0:01:52]}  Bxe6 {[%clk 0:00:24]} 22. Qxa8 {[%clk 0:01:50]}  Nd7 {[%clk 0:00:21]} 23. Qxa7 {[%clk 0:01:50]}  Nab8 {[%clk 0:00:13]} 24. Bxb8 {[%clk 0:01:47]}  Nxb8 {[%clk 0:00:13]} 25. Nc5 {[%clk 0:01:44]}  Bf7 {[%clk 0:00:13]} 26. Nd5 {[%clk 0:01:43]}  Nc6 {[%clk 0:00:12]} 27. Qc7 {[%clk 0:01:39]}  Nd8 {[%clk 0:00:09]} 28. Nxe7+ {[%clk 0:01:37]}  Kg7 {[%clk 0:00:09]} 29. Rxd8 {[%clk 0:01:37]}  Rxd8 {[%clk 0:00:07]} 30. Qxd8 {[%clk 0:01:38]}  Bg5 {[%clk 0:00:07]} 31. Qd6 {[%clk 0:01:36]}  Bf6 {[%clk 0:00:06]} 32. Ne6+ {[%clk 0:01:34]}  Kh6 {[%clk 0:00:02]} 33. f4 {[%clk 0:01:31]}  h4 {[%clk 0:00:02]} 34. g3 {[%clk 0:01:30]}  h3 {[%clk 0:00:02]} 35. g4 {[%clk 0:01:30]}  fxg4 {[%clk 0:00:02]} 36. f5 {[%clk 0:01:26]}  g5 {[%clk 0:00:01]} 37. Nd8 {[%clk 0:01:21]}  Kg7 {[%clk 0:00:02]} 38. Nxf7 {[%clk 0:01:21]}  Kxf7 {[%clk 0:00:03]} 39. Qe6+ {[%clk 0:01:21]}  Kg7 {[%clk 0:00:03]} 40. Rd1 {[%clk 0:01:19]}  Kh6 {[%clk 0:00:03]} 41. Qxf6+ {[%clk 0:01:15]}  Kh5 {[%clk 0:00:01]} 42. Qg6+ {[%clk 0:01:15]}  Kh4 {[%clk 0:00:01]} 43. Qh6# {[%clk 0:01:16]} 1-0


[Site "https://www.chess.com"]